bitfinex-derivatives/quotes_ETHF0:USTF0_20250730
["timestamp","ask_amount","ask_price","bid_price","bid_amount"]
[1753872713136,20.3271,3786.3,3786.2,0.01848795]
[1753872714934,23.5349,3786.3,3786.2,0.01848795]
[1753872716537,64.3349,3786.3,3786.2,0.01848795]
[1753872717938,64.3349,3786.3,3785.8,0.19546469]
[1753872717939,0.7636,3785.9,3785.8,0.19546469]
[1753872718137,1.1996,3785.4,3785.3,0.52839]
[1753872718338,19.6386,3785.4,3785.3,1.12839]
[1753872718534,1.0711,3785.7,3785.6,0.6]
[1753872718741,20.3286,3785.7,3785.6,0.4434]
[1753872718936,19.2006,3785.7,3785.3,0.1566]
[1753872719141,1.8916,3785.3,3785.2,0.6]
[1753872719444,20.3276,3785.3,3785.2,0.204]
[1753872719641,0.7636,3785.0,3784.9,0.73245]
[1753872719846,1.8916,3785.0,3784.9,0.6]
[1753872720543,19.2486,3785.0,3784.9,0.793]
[1753872721139,1.1496,3785.3,3784.7,0.1566]
[1753872721346,18.815,3785.2,3785.1,0.793]
[1753872721540,1.8916,3785.5,3785.4,0.4434]
[1753872721745,20.3456,3785.5,3785.4,1.12839]
[1753872721946,0.2058,3785.6,3785.5,1.16477]
[1753872722140,20.3456,3785.6,3785.5,1.32137]
[1753872722341,1.8916,3785.6,3785.5,1.12837]
[1753872722541,20.3496,3785.6,3785.5,1.12837]
[1753872722736,20.3496,3785.6,3785.5,0.4434]
[1753872722942,1.8916,3785.6,3785.5,0.204]
[1753872723141,20.3506,3785.6,3785.5,0.204]
[1753872723749,19.2226,3785.6,3785.3,0.52839]
[1753872723944,0.8993,3785.5,3785.4,0.204]
[1753872724141,0.7636,3785.2,3785.1,0.6]
[1753872724442,19.9101,3785.2,3785.1,0.6]
[1753872724648,20.3446,3785.2,3785.1,0.6]
[1753872724848,1.8916,3785.2,3785.1,0.6]
[1753872725037,20.3526,3785.2,3785.1,0.6]
[1753872725244,1.8916,3785.2,3785.1,0.6]
[1753872725541,20.3516,3785.2,3785.1,0.6]
[1753872725746,1.8916,3785.1,3785.0,0.204]
[1753872726541,1.8916,3785.1,3785.0,0.4434]
[1753872726748,19.6676,3785.1,3785.0,0.6]
[1753872726949,19.9251,3785.1,3785.0,0.6]
[1753872727141,20.3596,3785.1,3785.0,0.6]
[1753872727645,20.3596,3785.1,3785.0,0.4434]
[1753872728545,20.3596,3785.1,3785.0,0.6]
[1753872729148,1.8916,3785.1,3785.0,0.6]
[1753872729348,19.2256,3785.1,3784.6,3.2078]
[1753872729543,0.3075,3784.7,3784.5,0.52851]
[1753872729738,20.3486,3784.6,3784.5,0.73251]
[1753872729946,20.3486,3784.6,3784.5,0.97191]
[1753872730138,20.3486,3784.6,3784.5,0.4434]
[1753872730344,20.3486,3784.6,3784.5,0.204]
[1753872730545,0.7636,3784.3,3784.2,1.12855]
[1753872730739,20.3476,3784.3,3784.2,1.12855]
[1753872730945,3.2078,3784.7,3784.2,1.12855]
[1753872730946,3.9013,3784.7,3784.6,0.5285]
[1753872731149,64.3534,3784.7,3784.6,1.1285]
[1753872731546,3.2078,3785.1,3785.0,0.4434]
[1753872731744,4.6649,3785.1,3785.0,0.6]
[1753872731944,23.1219,3785.1,3785.0,0.793]
[1753872732147,63.9219,3785.1,3785.0,0.793]
[1753872732348,64.3564,3785.1,3785.0,0.6]
[1753872732651,23.1209,3785.1,3785.0,0.6]
[1753872732851,23.1209,3785.1,3785.0,0.793]
[1753872733049,3.2078,3785.5,3785.2,0.396]
[1753872733243,4.6649,3785.5,3785.4,1.12839]
[1753872733444,23.1169,3785.5,3785.4,1.12839]
[1753872733852,23.5514,3785.5,3785.4,1.12839]
[1753872734241,4.0214,3785.5,3785.4,1.12839]
[1753872734448,23.2899,3785.5,3785.4,1.12839]
[1753872734644,18.7535,3785.5,3785.4,1.32139]
[1753872734844,0.3075,3785.5,3785.4,1.32139]
[1753872735150,3.2078,3786.3,3785.7,0.52834]
[1753872735452,20.41582302,3786.2,3786.1,0.6]
[1753872735650,19.6481,3786.2,3786.1,0.6]
[1753872735848,20.3416,3786.2,3786.1,0.6]
[1753872736152,61.1416,3786.2,3786.1,0.97169]
[1753872736355,60.3191,3786.2,3786.1,1.12829]
[1753872736553,3.2078,3786.3,3786.1,0.97169]
[1753872736851,18.448,3786.2,3786.1,1.32129]
[1753872737059,0.3075,3786.6,3786.5,1.32124]
[1753872737354,18.7575,3786.6,3786.5,1.32124]
[1753872737551,19.1435,3786.6,3786.5,1.32124]
[1753872737853,20.3416,3786.6,3786.5,1.12824]
[1753872738652,19.4923,3786.6,3786.5,0.52824]
[1753872738855,1.8916,3786.1,3786.0,0.8796]
[1753872739055,1.8916,3786.1,3785.5,3.3551]
[1753872739353,0.742,3785.9,3785.6,0.1473]
[1753872739552,1.5913,3785.9,3785.8,0.4398]
[1753872739756,1.8916,3785.9,3785.8,1.11543]
[1753872740459,1.8916,3785.9,3785.8,0.52833]
[1753872740758,1.8916,3785.9,3785.8,1.11543]
[1753872741354,1.8916,3785.9,3785.8,0.5871]
[1753872741554,0.7636,3785.9,3785.5,3.2078]
[1753872741866,0.7408,3785.2,3785.1,0.5721]
[1753872742160,1.8392,3785.2,3785.1,0.5721]
[1753872742460,1.4086,3785.2,3785.1,0.7651]
[1753872742656,19.0418,3785.2,3785.1,0.7651]
[1753872743463,20.2832,3785.2,3785.1,0.5721]
[1753872744960,20.2732,3785.2,3785.1,0.5721]
[1753872745457,40.8,3785.7,3785.1,2.08618]
[1753872745661,20.2732,3785.6,3785.5,1.10048]
[1753872746658,20.2732,3785.6,3785.5,0.4261]
[1753872746960,0.7408,3785.4,3785.1,0.52843]
[1753872747157,1.0984,3785.2,3784.7,0.146]
[1753872747354,1.8392,3784.9,3784.8,1.10058]
[1753872747555,1.0984,3784.8,3784.6,0.5285]
[1753872747764,1.8392,3784.7,3784.5,0.52851]
[1753872747961,0.7408,3784.7,3784.6,0.1925]
[1753872748161,0.7408,3784.7,3784.6,0.4261]
[1753872748362,0.7408,3784.7,3784.0,0.146]
[1753872748564,0.7408,3784.3,3784.2,0.4261]
[1753872748867,1.051,3784.5,3784.4,0.5721]
[1753872749062,1.051,3784.5,3784.4,0.4261]
[1753872749265,1.8392,3784.5,3784.4,0.1925]
[1753872749459,1.8392,3784.5,3784.4,0.72104]
[1753872749763,0.6678,3784.4,3784.2,0.52856]
[1753872750059,0.9238,3784.3,3784.2,1.10066]
[1753872750257,18.434,3784.7,3784.6,1.29361]
[1753872750258,1.4086,3784.7,3784.6,1.29361]
[1753872750455,19.1148,3785.2,3785.1,1.29354]
[1753872750864,20.2862,3785.2,3785.1,0.5721]
[1753872751062,20.2862,3785.2,3785.1,0.1925]
[1753872751464,20.2862,3785.2,3785.1,0.5721]
[1753872751856,18.7572,3785.2,3785.1,0.7651]
[1753872752059,18.7572,3785.2,3785.1,0.5721]
[1753872752262,19.8556,3785.2,3785.1,0.4261]
[1753872752466,19.8556,3785.2,3785.1,0.5721]
[1753872752467,1.4086,3785.2,3785.1,0.5721]
[1753872752662,19.8556,3785.2,3785.1,0.7651]
[1753872752862,19.498,3785.2,3785.1,0.7651]
[1753872753072,0.795,3785.2,3785.1,0.7651]
[1753872753368,19.243,3785.2,3785.1,0.7651]
[1753872753666,20.2872,3785.2,3785.1,0.5721]
[1753872753869,0.7408,3784.9,3784.8,1.10059]
[1753872754163,1.8392,3784.9,3784.7,0.5285]
[1753872754364,0.7408,3784.9,3784.7,0.5285]
[1753872754565,1.8392,3784.8,3784.7,0.5285]
[1753872754859,1.8392,3784.8,3784.6,0.52851]
[1753872755061,0.4306,3784.7,3784.6,0.52851]
[1753872755262,1.8392,3784.7,3784.6,0.95461]
[1753872755464,1.8392,3784.7,3784.6,1.10061]
[1753872756561,1.8392,3784.7,3784.6,0.95461]
[1753872756962,1.8392,3784.7,3784.6,1.10061]
[1753872757160,1.8392,3784.7,3784.6,0.76211]
[1753872757356,0.7408,3784.5,3784.4,0.4261]
[1753872757559,1.8392,3784.5,3784.4,0.4261]
[1753872758762,1.8392,3784.4,3784.2,0.52856]
[1753872758967,1.5832,3784.2,3784.1,0.52858]
[1753872759168,1.8392,3784.2,3784.1,0.52858]
[1753872759968,1.8392,3784.2,3783.8,3.40336801]
[1753872759969,1.8392,3784.2,3784.0,0.52859]
[1753872760168,0.7408,3784.1,3783.8,3.40336801]
[1753872760469,1.8392,3784.0,3783.9,0.1925]
[1753872760667,1.8392,3784.0,3783.9,0.7211]
[1753872761076,1.8392,3784.0,3783.8,0.19556801]
[1753872761266,1.8392,3783.9,3783.8,0.19556801]
[1753872761772,20.2842,3783.9,3783.8,0.19556801]
[1753872763060,1.051,3783.3,3783.2,0.54721261]
[1753872763266,1.4086,3783.3,3783.2,0.54721261]
[1753872763467,1.8392,3783.3,3783.2,0.01850261]
[1753872764063,1.8392,3783.3,3783.0,0.52873]
[1753872764064,0.52871,3783.2,3782.4,0.146]
[1753872764266,0.4532,3782.6,3782.5,0.91621]
[1753872764460,0.4532,3782.6,3782.2,3.2078]
[1753872764461,1.0984,3782.5,3782.2,3.2078]
[1753872764666,1.8392,3782.1,3781.9,0.1949]
[1753872764868,1.529,3782.0,3781.9,1.45749]
[1753872765073,1.8392,3782.0,3781.9,1.60349]
[1753872765483,1.4086,3782.0,3781.9,1.60349]
[1753872765774,18.462,3782.2,3782.1,0.52886]
[1753872765972,20.3012,3782.2,3782.1,1.60346]
[1753872766473,0.3102,3782.2,3782.1,1.79646]
[1753872767171,1.8392,3782.2,3782.1,0.52886]
[1753872767374,1.8392,3782.2,3782.1,1.60346]
[1753872767670,0.7408,3782.1,3781.8,3.40347143]
[1753872767875,1.8392,3781.9,3781.8,3.40347143]
[1753872768075,1.8392,3781.9,3781.8,3.93237143]
[1753872768873,1.8392,3781.9,3781.8,4.31977143]
[1753872769069,0.865,3782.3,3782.2,0.83645]
[1753872769271,19.8816,3782.3,3782.2,1.60345]
[1753872769468,20.3122,3782.3,3782.2,1.60345]
[1753872770070,1.8392,3782.3,3782.2,1.60345]
[1753872770268,44.0078,3782.7,3782.6,0.95489]
[1753872770578,62.4798,3782.7,3782.6,1.45739]
[1753872770770,62.4778,3782.7,3782.6,0.72129]
[1753872770968,63.5762,3782.7,3782.6,0.52879]
[1753872771172,23.517,3782.7,3782.6,0.52879]
[1753872771678,5.047,3782.7,3782.6,0.52879]
[1753872771981,5.047,3782.7,3782.6,0.72129]
[1753872772273,23.513,3782.7,3782.6,1.56999]
[1753872772578,23.513,3782.7,3782.6,0.52879]
[1753872772873,1.1305,3782.6,3782.5,0.5288]
[1753872773080,1.8504,3782.6,3782.5,0.5288]
[1753872773779,1.8504,3782.4,3782.3,0.52883]
[1753872773976,20.3164,3782.4,3782.3,0.52883]
[1753872774274,1.8504,3782.2,3782.1,0.52885]
[1753872774476,1.1036,3782.1,3782.0,0.52887]
[1753872774780,20.3174,3782.1,3782.0,0.52887]
[1753872776274,1.8504,3781.9,3781.8,0.19567143]
[1753872776478,1.8504,3781.9,3781.8,1.09827143]
[1753872777184,1.8504,3781.9,3781.8,0.88127143]
[1753872777579,1.8504,3781.9,3781.8,0.69177143]
[1753872777780,1.8504,3781.9,3781.8,0.19567143]
[1753872778282,1.8439966,3781.9,3781.8,0.19567143]
[1753872779483,1.8439966,3781.9,3780.9,3.2078]
[1753872779484,0.377,3781.6,3780.9,3.2078]
[1753872779677,1.8504,3781.4,3781.3,0.4905]
[1753872779983,1.8504,3781.4,3781.3,1.1047]
[1753872780183,41.9036,3781.8,3781.3,0.5328]
[1753872780480,0.6784,3781.6,3781.5,1.96234]
[1753872780681,1.4252,3781.6,3781.5,1.76924]
[1753872780878,1.8504,3781.6,3781.5,1.2403]
[1753872781275,1.8504,3781.6,3781.5,1.63364]
[1753872781477,0.52897,3781.3,3781.2,0.4905]
[1753872781673,0.7468,3781.1,3781.0,0.8877]
[1753872781878,1.8504,3781.1,3781.0,0.8877]
[1753872782381,1.8504,3781.1,3781.0,1.41671]
[1753872782579,1.8504,3781.1,3781.0,0.8877]
[1753872782791,1.8504,3781.1,3781.0,1.1047]
[1753872783181,1.8504,3780.6,3780.5,0.52907]
[1753872783384,1.8504,3780.6,3780.5,1.76937]
[1753872783883,1.8504,3780.6,3780.5,1.2403]
[1753872784280,1.1238,3780.5,3780.4,1.41679]
[1753872784489,1.8504,3780.5,3780.4,1.63379]
[1753872784786,20.3194,3780.5,3780.4,1.63379]
[1753872784984,20.3194,3780.5,3780.4,1.76939]
[1753872785385,20.3194,3780.5,3780.4,1.2403]
[1753872785686,20.3094,3780.5,3780.4,1.2403]
[1753872786585,19.5072,3780.5,3780.4,0.301]
[1753872786885,1.0482,3780.3,3780.2,0.01851729]
[1753872787081,1.4252,3780.3,3780.2,0.01851729]
[1753872787286,1.8504,3780.3,3780.2,0.01851729]
[1753872787781,0.98127,3779.9,3779.8,0.19577496]
[1753872787981,0.98127,3779.9,3778.6,42.58037]
[1753872787982,0.4521,3779.0,3778.9,3.2078]
[1753872788182,1.8504,3779.0,3778.9,4.3295]
[1753872788381,1.8504,3779.0,3778.9,4.4837]
[1753872789186,1.8504,3779.0,3778.5,3.2078]
[1753872789187,1.172,3779.0,3778.5,3.2078]
[1753872789379,1.8504,3778.6,3778.5,3.2078]
[1753872789682,20.3444,3778.6,3778.5,3.2078]
[1753872789880,20.3444,3778.6,3778.5,3.73716]
[1753872790298,20.3444,3778.6,3778.5,3.2078]
[1753872791191,0.3014,3778.6,3778.5,4.4837]
[1753872791486,1.549,3779.0,3778.9,1.95571]
[1753872791692,60.837,3779.0,3778.9,1.72171]
[1753872791993,42.349,3779.0,3778.9,0.4905]
[1753872792193,60.841,3779.0,3778.9,0.1895]
[1753872792388,0.8022,3778.9,3778.8,0.52931]
[1753872792688,40.8,3779.0,3778.8,2.10991]
[1753872792994,0.7468,3779.4,3779.3,2.10985]
[1753872793198,19.2368,3779.4,3779.3,2.10985]
[1753872793388,20.039,3779.4,3779.3,2.10985]
[1753872793584,20.3404,3779.4,3779.3,2.10985]
[1753872793890,21.11005872,3779.4,3779.3,1.95565]
[1753872794095,2.62005872,3779.4,3779.3,1.95565]
[1753872794292,21.11205872,3779.4,3779.3,1.95565]
[1753872794686,21.11205872,3779.4,3779.3,0.52925]
[1753872794892,21.10605872,3779.4,3779.3,1.01975]
[1753872795195,21.10605872,3779.4,3779.3,1.41695]
[1753872796092,0.76965872,3779.4,3779.3,5.31765]
[1753872796295,1.4252,3780.0,3779.9,2.10976]
[1753872796494,20.68733499,3780.0,3779.9,2.10976]
[1753872796998,21.11253499,3780.0,3779.9,2.10976]
[1753872797294,20.00693499,3780.0,3779.8,0.52917]
[1753872797496,2.61953499,3779.9,3779.8,1.65087]
[1753872797699,2.61953499,3779.9,3779.8,2.10977]
[1753872797998,19.25913499,3779.9,3779.8,2.10977]
[1753872798199,0.76913499,3779.9,3779.8,2.10977]
[1753872798393,19.25713499,3779.9,3779.8,2.10977]
[1753872798589,0.37193499,3779.9,3779.8,2.10977]
[1753872798894,0.37193499,3779.9,3779.5,3.2078]
[1753872798895,1.8504,3780.6,3780.5,1.41148]
[1753872799193,1.68990923,3780.8,3780.7,0.1895]
[1753872799393,20.18590923,3780.8,3780.5,0.52907]
[1753872799590,19.2428,3780.8,3780.7,0.1895]
[1753872799793,0.7468,3780.5,3780.4,0.71859]
[1753872799992,1.8504,3780.5,3780.4,1.25729]
[1753872800295,1.4734,3780.7,3780.6,0.8824]
[1753872800495,19.9644,3780.7,3780.6,0.8824]
[1753872800795,0.7468,3780.4,3780.3,0.1895]
[1753872800993,1.549,3780.4,3780.3,0.8824]
[1753872801390,18.49,3780.5,3780.4,0.52909]
[1753872801586,18.49,3780.5,3780.4,0.97279]
[1753872801790,18.49,3780.5,3780.4,1.41989]
[1753872801994,1.8719,3780.7,3780.6,1.25837]
[1753872802298,20.3609,3780.7,3780.6,0.8908]
[1753872802598,20.3609,3780.7,3780.6,4.0986]
[1753872802999,20.3609,3780.7,3780.6,0.8908]
[1753872803199,20.3609,3780.7,3780.6,0.7293]
[1753872803600,20.3609,3780.7,3780.6,0.8908]
[1753872803796,19.2411,3780.7,3780.6,0.8908]
[1753872804001,0.3742,3780.9,3780.8,0.8908]
[1753872804195,18.8532,3780.9,3780.8,0.8908]
[1753872804601,18.479,3780.9,3780.8,0.8908]
[1753872804789,18.478,3781.1,3781.0,0.2402]
[1753872804990,19.9814,3781.1,3781.0,0.8908]
[1753872805201,19.9814,3781.1,3781.0,1.41981]
[1753872805398,20.3556,3781.1,3781.0,1.41981]
[1753872805701,20.3556,3781.1,3781.0,1.42301]
[1753872806100,19.6043,3781.1,3780.9,0.52902]
[1753872806303,19.2301,3781.1,3781.0,0.7325]
[1753872806492,0.7521,3780.8,3780.7,0.2035]
[1753872806694,1.1963,3780.8,3780.7,3.4113]
[1753872806900,1.5034,3780.8,3780.7,0.8922]
[1753872807298,18.469,3781.0,3780.9,0.4457]
[1753872807599,1.5034,3781.2,3781.1,0.4891]
[1753872807802,0.3742,3781.2,3781.1,0.97469]
[1753872808001,1.8776,3781.5,3781.4,0.97465]
[1753872808302,0.44661042,3781.5,3781.4,1.13435]
[1753872808505,0.26184408,3781.5,3781.4,1.42115]
[1753872809103,0.44692559,3781.5,3781.4,1.42115]
[1753872809696,1.8776,3781.7,3781.6,0.4891]
[1753872809898,1.28108,3781.3,3781.2,0.2035]
[1753872810096,1.28108,3781.3,3780.9,0.4465]
[1753872810296,0.7521,3780.9,3780.8,3.4113]
[1753872810499,1.8776,3780.9,3780.8,3.4113]
[1753872810903,1.8776,3780.9,3780.8,3.2078]
[1753872811203,0.52904,3780.8,3780.6,0.81586]
[1753872811403,0.7521,3780.7,3780.6,1.01936]
[1753872811596,1.8776,3780.7,3780.6,4.46736]
[1753872811801,1.8776,3780.7,3780.6,4.18176]
[1753872812102,1.8776,3780.7,3780.6,4.46936]
[1753872812303,1.1255,3781.0,3780.9,0.2422]
[1753872812503,1.5034,3781.4,3781.3,1.13557]
[1753872812711,1.5034,3781.8,3781.7,0.73361]
[1753872812904,2.25973473,3781.8,3781.7,0.2035]
[1753872813112,1.8776,3781.1,3781.0,3.4125]
[1753872813405,0.2519,3780.7,3780.6,3.448]
[1753872813611,1.8776,3780.7,3780.6,3.9403]
[1753872814202,1.8776,3780.7,3780.6,3.4113]
[1753872815509,3.2078,3781.2,3781.0,0.2035]
[1753872815510,1.8776,3781.1,3781.0,0.2035]
[1753872815702,1.4334,3781.1,3781.0,0.2047]
[1753872815908,1.1263,3781.1,3781.0,0.8922]
[1753872816110,1.1263,3781.1,3781.0,4.1]
[1753872816412,1.8776,3781.1,3781.0,3.6547]
[1753872816613,1.8776,3781.1,3781.0,3.4145]
[1753872816810,0.7521,3781.1,3780.8,0.52903]
[1753872817114,1.8776,3780.9,3780.8,0.52903]
[1753872817707,1.1255,3780.8,3780.7,0.73255]
[1753872818015,1.8776,3780.8,3780.7,0.73255]
[1753872818210,1.8776,3780.8,3780.7,0.73375]
[1753872818602,1.8776,3780.8,3780.7,0.97395]
[1753872818915,1.8776,3780.8,3780.7,1.25955]
[1753872820212,1.8776,3780.8,3780.7,1.42125]
[1753872820613,1.8776,3781.2,3781.1,1.2615]
[1753872820912,1.8776,3781.2,3781.1,1.4212]
[1753872821107,4.6412,3781.5,3781.4,1.41995]
[1753872821312,4.6412,3781.5,3781.4,0.73245]
[1753872821313,1.8776,3781.5,3781.4,0.73245]
[1753872821507,1.8776,3781.5,3781.4,0.73365]
[1753872821713,1.8776,3781.5,3781.4,1.42115]
[1753872821906,2.0776,3781.9,3781.8,0.9758]
[1753872822103,0.2,3781.9,3781.8,1.4211]
[1753872822512,0.2,3781.9,3781.8,4.6289]
[1753872824712,0.3071,3782.4,3782.3,1.42101]
[1753872825013,0.3071,3782.4,3781.8,3.2078]
[1753872825014,1.5705,3782.3,3782.2,3.2078]
[1753872825211,1.8776,3782.3,3782.2,3.2078]
[1753872826114,1.1255,3782.3,3782.1,0.2035]
[1753872826318,1.8776,3782.2,3782.1,0.2035]
[1753872828218,1.8776,3782.2,3782.1,0.8922]
[1753872828617,1.8776,3782.2,3781.8,3.2078]
[1753872828618,0.3097,3782.3,3782.2,0.53204]
[1753872828914,0.9358,3782.3,3782.2,1.42104]
[1753872829421,0.3097,3782.3,3782.2,1.42104]
[1753872830118,0.3097,3782.3,3782.2,4.62884]
[1753872830511,1.5034,3782.5,3782.4,0.97451]
[1753872830712,1.8776,3782.5,3782.4,1.42101]
[1753872831311,1.8776,3782.5,3782.4,0.4437]
[1753872831614,1.7926,3782.2,3782.1,0.71994]
[1753872832114,1.6033,3782.2,3781.7,2.8224]
[1753872832312,1.5093,3781.8,3781.7,2.8224]
[1753872832612,1.191,3781.6,3781.5,0.72003]
[1753872832820,1.191,3781.8,3781.7,1.35141]
[1753872833013,0.81861,3782.4,3782.3,0.428]
[1753872833212,1.191,3782.4,3782.3,0.428]
[1753872833518,1.7926,3782.4,3782.3,0.2369]
[1753872833714,0.7315,3782.2,3782.1,0.95684]
[1753872834017,1.7926,3782.2,3782.1,0.7742]
[1753872834218,1.4434,3782.0,3781.9,0.76577]
[1753872834417,1.7926,3782.0,3781.9,0.95687]
[1753872834620,1.7926,3782.0,3781.9,0.428]
[1753872834814,0.7315,3781.7,3781.6,0.7742]
[1753872835016,0.4791,3781.4,3781.1,3.2078]
[1753872835211,1.32219,3782.0,3781.1,3.3989]
[1753872835212,1.7926,3781.2,3781.1,3.3989]
[1753872835412,1.7926,3781.2,3781.1,3.6358]
[1753872835721,1.7926,3781.2,3781.1,3.982]
[1753872836214,1.7926,3781.2,3781.1,4.51099]
[1753872836521,1.7926,3781.2,3781.1,3.2078]
[1753872836522,1.4434,3781.2,3781.1,3.2078]
[1753872836719,0.4791,3780.9,3780.8,0.428]
[1753872836919,1.191,3780.9,3780.8,0.428]
[1753872837413,1.54386,3780.6,3780.5,3.2078]
[1753872837615,1.7926,3780.6,3780.5,3.982]
[1753872837821,1.3627577,3780.6,3780.5,4.2672]
[1753872838119,1.0135577,3780.6,3780.5,4.2672]
[1753872838419,0.2898,3780.6,3780.5,4.2672]
[1753872838621,0.2065,3780.9,3780.8,1.0594]
[1753872838622,0.9077,3780.9,3780.8,1.0594]
[1753872839017,0.9077,3780.9,3780.8,1.58843]
[1753872839219,1.4434,3780.9,3780.8,1.58843]
[1753872839418,0.9077,3781.6,3781.5,0.1911]
[1753872839618,1.191,3781.6,3781.5,1.0594]
[1753872840219,0.9077,3781.6,3781.5,1.0594]
[1753872840424,0.4791,3781.6,3781.5,1.0594]
[1753872840620,1.191,3781.6,3781.5,1.0594]
[1753872840824,0.9012,3782.0,3781.9,0.52888]
[1753872841035,1.191,3782.0,3781.9,1.58828]
[1753872841218,0.4286,3782.0,3781.6,0.81411]
[1753872841419,3.2078,3782.3,3781.6,0.52891]
[1753872841420,2.1788,3781.8,3781.6,0.52891]
[1753872841724,1.6499,3781.7,3781.6,1.58831]
[1753872841925,0.9077,3781.7,3781.6,1.58831]
[1753872842222,0.2898,3781.7,3781.6,1.58831]
[1753872842425,0.9077,3782.0,3781.9,1.58828]
[1753872842926,1.191,3782.0,3781.9,1.58828]
[1753872844127,1.6499,3782.0,3781.9,1.58828]
[1753872845925,0.938,3781.9,3781.5,0.6314]
[1753872846123,1.6499,3781.8,3781.7,1.3031]
[1753872846322,1.6499,3781.8,3781.7,1.5883]
[1753872846826,1.6499,3781.8,3781.7,1.0594]
[1753872847022,1.6499,3781.8,3781.7,0.7742]
[1753872847927,1.07114,3781.4,3781.3,0.76584]
[1753872848225,1.4434,3781.4,3781.3,1.58834]
[1753872848423,0.9077,3781.4,3781.3,1.58834]
[1753872849724,1.6499,3781.4,3781.3,1.0594]
[1753872849922,1.26045,3781.3,3781.2,3.2078]
[1753872850230,1.26045,3781.3,3780.9,0.3462]
[1753872850231,2.1789,3781.0,3780.9,1.3032]
[1753872850425,1.6499,3781.0,3780.9,1.3032]
[1753872850619,1.6499,3781.0,3780.9,1.5884]
[1753872851027,1.6499,3781.0,3780.9,1.3032]
[1753872851230,0.9077,3781.0,3780.9,1.5884]
[1753872851627,1.191,3781.0,3780.9,1.5884]
[1753872851827,1.4434,3781.0,3780.9,1.5884]
[1753872852022,1.6499,3781.0,3780.9,1.3032]
[1753872852426,1.6499,3781.0,3780.9,1.5884]
[1753872852829,0.2898,3781.0,3780.9,1.5884]
[1753872853227,1.43665,3781.4,3781.3,0.428]
[1753872853524,1.97235,3781.4,3781.3,1.58836]
[1753872853723,2.17885,3781.4,3781.3,1.0594]
[1753872853924,0.52892,3781.6,3781.3,1.0594]
[1753872854131,1.1536,3781.5,3781.4,1.58834]
[1753872854332,1.4434,3781.5,3781.4,1.58834]
[1753872855731,0.529,3781.1,3780.8,3.2078]
[1753872856029,0.938,3781.0,3780.9,1.58841]
[1753872856430,1.6499,3781.0,3780.9,1.58841]
[1753872858933,1.6499,3781.0,3780.9,0.52901]
[1753872859236,1.6499,3781.0,3780.9,1.58841]
[1753872860039,2.17891,3781.0,3780.9,0.52901]
[1753872860234,1.6499,3781.0,3780.9,0.52901]
[1753872860434,1.6499,3781.0,3780.9,1.58841]
[1753872860936,0.9077,3781.0,3780.9,1.58841]
[1753872861540,0.2898,3781.0,3780.9,1.58841]
[1753872861733,1.2449,3781.3,3781.2,0.95287]
[1753872861934,1.2449,3781.3,3781.2,1.59747]
[1753872862237,1.6983,3781.3,3781.2,1.59747]
[1753872862438,1.6983,3781.3,3781.2,0.837]
[1753872862640,1.6983,3781.3,3781.2,1.0685]
[1753872862833,0.5029,3781.3,3781.2,1.0685]
[1753872863040,0.3096,3781.3,3781.2,4.2763]
[1753872863540,1.78105,3782.1,3782.0,1.59736]
[1753872863732,2.02275,3782.1,3782.0,1.59736]
[1753872863933,2.23445,3782.1,3782.0,1.59736]
[1753872864135,2.23445,3782.1,3782.0,1.0685]
[1753872864437,0.9616,3782.1,3782.0,1.0685]
[1753872864635,1.49045,3782.1,3782.0,1.0685]
[1753872864837,0.9616,3782.1,3782.0,1.0685]
[1753872865234,1.2522,3782.1,3782.0,1.0685]
[1753872865435,1.4939,3782.1,3782.0,1.0685]
[1753872865636,1.7056,3782.1,3782.0,1.0685]
[1753872867232,1.7056,3782.1,3782.0,0.7783]
[1753872867935,1.7056,3782.1,3782.0,1.0685]
[1753872868143,1.4939,3782.1,3782.0,1.0685]
[1753872868438,0.7446,3782.1,3781.8,3.2078]
[1753872868642,0.5029,3781.5,3781.4,4.45084]
[1753872868833,0.9616,3781.5,3781.4,4.45084]
[1753872869037,1.2522,3781.5,3781.4,4.45084]
[1753872869237,1.4939,3781.5,3781.4,4.80524]
[1753872869439,1.4939,3781.5,3781.4,4.2763]
[1753872869742,1.7056,3781.5,3781.4,4.2763]
[1753872869949,1.7056,3781.5,3781.4,3.2078]
[1753872870533,0.3096,3780.7,3780.6,3.2078]
[1753872870739,2.23464,3780.7,3780.6,0.5859]
[1753872871140,2.23464,3780.7,3780.6,0.7783]
[1753872871335,2.23464,3780.7,3780.6,0.4239]
[1753872871741,2.23464,3780.7,3780.6,0.7783]
[1753872872141,1.2469,3780.7,3780.2,3.2078]
[1753872872346,1.2469,3780.7,3779.8,4.20840961]
[1753872872347,1.7056,3779.9,3779.8,4.20840961]
[1753872872644,1.7056,3779.9,3779.8,0.19577496]
[1753872873160,1.7056,3779.9,3779.8,0.97407496]
[1753872873656,0.9616,3780.4,3780.3,0.7119]
[1753872873956,0.52908,3780.4,3780.3,1.3565]
[1753872874255,0.52908,3780.4,3780.2,3.2078]
[1753872874256,0.52903,3780.8,3780.7,1.4538]
[1753872874453,1.49062,3780.9,3780.8,1.8082]
[1753872874653,2.23636,3780.6,3780.5,0.7783]
[1753872874952,2.23636,3780.6,3780.1,0.4517]